[Event "14th Poti Open-A 2019"]
[Site "Poti"]
[Date "2019.07.19"]
[Round "8.21"]
[White "Mikayelyan, Mikael"]
[Black "Bechvaia, Gabriel"]
[Result "1-0"]
[ECO "A05"]
[WhiteElo "1736"]
[BlackElo "1793"]
[Annotator "NA RC"]
[PlyCount "117"]
[EventDate "2019.07.13"]
[EventType "swiss"]
[EventCountry "GEO"]
[SourceTitle "playchess.com"]
[Source "ChessBase"]
[SourceQuality "1"]
[TimeControl "40/5400+30:1800+30"]

1. Nf3 {[%emt 0:00:00]} Nf6 {[%emt 0:00:35]} 2. g3 {[%emt 0:00:00]} g6 {[%emt 0:00:05]} 3. Bg2 {[%emt 0:00:00]} Bg7 {[%emt 0:00:05]} 4. O-O {[%emt 0:00:00]} O-O {[%emt 0:00:05]} 5. c4 {[%emt 0:00:00]} d6 {[%emt 0:00:15]} 6. Nc3 {[%emt 0:00:30]} Nbd7 {[%emt 0:00:16]} 7. d3 {[%emt 0:01:05]} e5 {[%emt 0:02:20]} 8. Rb1 {[%emt 0:02:14]} c6 {[%emt 0:04:28]} 9. Nd2 {[%emt 0:04:01]} Nb6 {[%emt 0:01:27]} 10. b4 {[%emt 0:03:29]} d5 {[%emt 0:01:25]} 11. a4 {[%emt 0:03:20]} Be6 {[%emt 0:03:49]} 12. a5 {[%emt 0:00:51]} Nbd7 {[%emt 0:01:54]} 13. Qb3 {[%emt 0:05:05]} e4 {[%emt 0:18:02]} 14. Qa3 {[%emt 0:07:07]} exd3 {[%emt 0:16:30]} 15. exd3 {[%emt 0:01:02]} Ne5 {[%emt 0:00:12]} 16. d4 {[%emt 0:06:40]} Nxc4 {[%emt 0:00:37]} 17. Nxc4 {[%emt 0:00:12]} dxc4 {[%emt 0:00:01]} 18. a6 {[%emt 0:00:33]} Qd7 {[%emt 0:13:30]} 19. b5 {[%emt 0:11:24]} Bd5 {[%emt 0:13:58]} 20. axb7 {[%emt 0:14:29]} Qxb7 {[%emt 0:00:02]} 21. bxc6 {[%emt 0:00:26]} Qxc6 {[%emt 0:00:01]} 22. Nxd5 {[%emt 0:00:17]} Nxd5 {[%emt 0:00:07]} 23. Qa5 {[%emt 0:00:07]} Rad8 {[%emt 0:06:20]} 24. Rb5 {[%emt 0:03:03]} Qf6 {[%emt 0:04:13]} 25. Rxd5 {[%emt 0:00:32]} Rxd5 {[%emt 0:00:27]} 26. Qxd5 {[%emt 0:00:20]} Qxd4 {[%emt 0:00:22]} 27. Qxd4 {[%emt 0:01:04]} Bxd4 {[%emt 0:00:02]} 28. Be3 {[%emt 0:00:56]} Bxe3 {[%emt 0:00:25]} 29. fxe3 {[%emt 0:00:04]} Rc8 {[%emt 0:00:18]} 30. Rc1 {[%emt 0:00:19]} Kg7 {[%emt 0:03:53]} 31. Rc3 {[%emt 0:00:05]} f5 {[%emt 0:02:36]} 32. Bf1 {[%emt 0:00:05]} Rc7 {[%emt 0:02:02]} 33. Rxc4 {[%emt 0:00:39]} Re7 {[%emt 0:00:01]} 34. Kf2 {[%emt 0:00:07]} Kf6 {[%emt 0:00:27]} 35. Ke2 {[%emt 0:00:16]} Ke5 {[%emt 0:02:04]} 36. Bg2 {[%emt 0:00:08]} Rd7 {[%emt 0:01:55]} 37. Rc5+ {[%emt 0:00:08]} Kf6 {[%emt 0:00:14]} 38. Rb5 {[%emt 0:00:52]} Rc7 {[%emt 0:00:52]} 39. Kd2 {[%emt 0:00:08]} Rd7+ {[%emt 0:00:36]} 40. Rd5 {[%emt 0:00:30]} Rc7 {[%emt 0:00:13]} 41. Rd4 {[%emt 0:30:18]} Ke5 {[%emt 0:30:55]} 42. Bd5 {[%emt 0:00:52]} g5 {[%emt 0:01:20]} 43. Bb3 {[%emt 0:00:40]} h5 {[%emt 0:01:17]} 44. Rd5+ {[%emt 0:00:08]} Ke4 {[%emt 0:01:01]} 45. Rd8 {[%emt 0:00:33]} f4 {[%emt 0:00:26]} 46. gxf4 {[%emt 0:00:24]} gxf4 {[%emt 0:00:01]} 47. Rd4+ {[%emt 0:00:18]} Ke5 {[%emt 0:00:13]} 48. Rxf4 {[%emt 0:00:15]} Rg7 {[%emt 0:00:15]} 49. Ke2 {[%emt 0:00:23]} Rg2+ {[%emt 0:00:38]} 50. Rf2 {[%emt 0:00:14]} Rg4 {[%emt 0:00:11]} 51. Bd1 {[%emt 0:00:17]} a5 {[%emt 0:01:04]} 52. Bc2 {[%emt 0:00:32]} h4 {[%emt 0:00:31]} 53. Kf1 {[%emt 0:00:41]} a4 {[%emt 0:00:59]} 54. Rf5+ {[%emt 0:00:22]} Kd6 {[%emt 0:00:28]} 55. Rf4 {[%emt 0:05:12]} Rxf4+ {[%emt 0:00:09]} 56. exf4 {[%emt 0:00:06]} Kd5 {[%emt 0:00:44]} 57. Kf2 {[%emt 0:00:06]} a3 {[%emt 0:00:07]} 58. Kf3 {[%emt 0:00:38]} Kc4 {[%emt 0:00:28]} 59. Bh7 {[%emt 0:00:07]} 1-0

[Event "14th Poti Open-A 2019"]
[Site "Poti"]
[Date "2019.07.19"]
[Round "8.22"]
[White "Bolkvadze, Tedo"]
[Black "Naqopia, Giorgi"]
[Result "0-1"]
[ECO "A46"]
[WhiteElo "1611"]
[BlackElo "1680"]
[Annotator "NA RC"]
[PlyCount "84"]
[EventDate "2019.07.13"]
[EventType "swiss"]
[EventCountry "GEO"]
[SourceTitle "playchess.com"]
[Source "ChessBase"]
[SourceQuality "1"]
[TimeControl "40/5400+30:1800+30"]

1. d4 {[%emt 0:00:00]} Nf6 {[%emt 0:00:42]} 2. Nf3 {[%emt 0:00:00]} d6 {[%emt 0:00:13]} 3. c4 {[%emt 0:00:12]} Nbd7 {[%emt 0:00:26]} 4. g3 {[%emt 0:00:18]} e5 {[%emt 0:00:25]} 5. Bg2 {[%emt 0:01:09]} c6 {[%emt 0:00:08]} 6. O-O {[%emt 0:00:27]} e4 {[%emt 0:00:50]} 7. Ng5 {[%emt 0:06:27]} d5 {[%emt 0:00:18]} 8. cxd5 {[%emt 0:02:12]} cxd5 {[%emt 0:00:08]} 9. Nc3 {[%emt 0:00:26]} h6 {[%emt 0:00:07]} 10. Nh3 {[%emt 0:00:04]} Nb6 {[%emt 0:01:08]} 11. f3 {[%emt 0:02:14]} exf3 {[%emt 0:01:40]} 12. exf3 {[%emt 0:00:58]} Be7 {[%emt 0:00:40]} 13. Nf2 {[%emt 0:04:46]} O-O {[%emt 0:01:07]} 14. Nd3 {[%emt 0:03:11]} Bf5 {[%emt 0:07:01]} 15. Ne5 {[%emt 0:05:39]} Rc8 {[%emt 0:01:08]} 16. Be3 {[%emt 0:01:05]} Nc4 {[%emt 0:00:15]} 17. Nxc4 {[%emt 0:00:54]} dxc4 {[%emt 0:02:32]} 18. Qd2 {[%emt 0:01:51]} Bb4 {[%emt 0:00:12]} 19. Qf2 {[%emt 0:02:36]} Bxc3 {[%emt 0:02:01]} 20. bxc3 {[%emt 0:00:30]} Qa5 {[%emt 0:00:28]} 21. Qb2 {[%emt 0:02:23]} b5 {[%emt 0:00:51]} 22. Bd2 {[%emt 0:04:50]} Rfe8 {[%emt 0:08:18]} 23. Rfe1 {[%emt 0:01:07]} Qb6 {[%emt 0:08:25]} 24. a4 {[%emt 0:08:06]} Rxe1+ {[%emt 0:00:59]} 25. Bxe1 {[%emt 0:00:26]} bxa4 {[%emt 0:00:03]} 26. Qxb6 {[%emt 0:00:44]} axb6 {[%emt 0:00:02]} 27. Rxa4 {[%emt 0:00:10]} Re8 {[%emt 0:00:03]} 28. Kf2 {[%emt 0:01:18]} Bd3 {[%emt 0:00:08]} 29. Ra2 {[%emt 0:08:21]} Nd5 {[%emt 0:00:20]} 30. f4 {[%emt 0:01:26]} Ne3 {[%emt 0:00:19]} 31. Bf3 {[%emt 0:00:25]} Nf1 {[%emt 0:02:49]} 32. h3 {[%emt 0:15:10]} Nxg3 {[%emt 0:00:50]} 33. Kxg3 {[%emt 0:00:07]} Rxe1 {[%emt 0:00:13]} 34. Ra8+ {[%emt 0:00:03]} Kh7 {[%emt 0:00:08]} 35. Rb8 {[%emt 0:00:29]} Rc1 {[%emt 0:00:27]} 36. Rxb6 {[%emt 0:00:46]} Rxc3 {[%emt 0:00:09]} 37. Kf2 {[%emt 0:00:14]} Bf5 {[%emt 0:00:27]} 38. h4 {[%emt 0:05:24]} Rd3 {[%emt 0:00:15]} 39. d5 {[%emt 0:01:41]} c3 {[%emt 0:00:09]} 40. Rc6 {[%emt 0:00:04]} c2 {[%emt 0:00:05]} 41. d6 {[%emt 0:33:06]} Rxd6 {[%emt 0:30:15]} 42. Rxd6 {[%emt 0:01:19]} c1=Q {[%emt 0:00:10]} 0-1

[Event "14th Poti Open-A 2019"]
[Site "Poti"]
[Date "2019.07.19"]
[Round "8.23"]
[White "Liponava, Zurab"]
[Black "Nurijanyan, Alex"]
[Result "1-0"]
[ECO "C04"]
[WhiteElo "1793"]
[BlackElo "1610"]
[Annotator "NA RC"]
[PlyCount "97"]
[EventDate "2019.07.13"]
[EventType "swiss"]
[EventCountry "GEO"]
[SourceTitle "playchess.com"]
[Source "ChessBase"]
[SourceQuality "1"]
[TimeControl "40/5400+30:1800+30"]

1. e4 {[%emt 0:03:00]} e6 {[%emt 0:00:00]} 2. d4 {[%emt 0:00:32]} d5 {[%emt 0:00:00]} 3. Nd2 {[%emt 0:00:34]} Nc6 {[%emt 0:00:00]} 4. Ngf3 {[%emt 0:02:26]} Nf6 {[%emt 0:00:00]} 5. e5 {[%emt 0:00:48]} Nd7 {[%emt 0:00:04]} 6. Bb5 {[%emt 0:01:26]} f6 {[%emt 0:00:07]} 7. exf6 {[%emt 0:00:42]} Qxf6 {[%emt 0:00:06]} 8. c3 {[%emt 0:02:42]} Bd6 {[%emt 0:01:07]} 9. Nf1 {[%emt 0:03:34]} O-O {[%emt 0:01:12]} 10. Ne3 {[%emt 0:08:24]} Ne7 {[%emt 0:00:19]} 11. O-O {[%emt 0:00:47]} c6 {[%emt 0:01:47]} 12. Bd3 {[%emt 0:08:41]} Ng6 {[%emt 0:00:22]} 13. Ng4 {[%emt 0:01:33]} Qf7 {[%emt 0:02:27]} 14. Ng5 {[%emt 0:02:25]} Qe7 {[%emt 0:00:19]} 15. Bxg6 {[%emt 0:00:49]} hxg6 {[%emt 0:00:12]} 16. Qd3 {[%emt 0:02:13]} Rf5 {[%emt 0:01:31]} 17. f4 {[%emt 0:02:31]} Nf6 {[%emt 0:07:43]} 18. Nxf6+ {[%emt 0:18:54]} gxf6 {[%emt 0:02:06]} 19. g4 {[%emt 0:00:10]} fxg5 {[%emt 0:09:26]} 20. gxf5 {[%emt 0:00:19]} gxf4 {[%emt 0:01:16]} 21. fxg6 {[%emt 0:05:17]} e5 {[%emt 0:00:07]} 22. dxe5 {[%emt 0:01:03]} Qg5+ {[%emt 0:00:05]} 23. Kh1 {[%emt 0:02:49]} Bf5 {[%emt 0:02:03]} 24. Bxf4 {[%emt 0:02:14]} Qg4 {[%emt 0:01:43]} 25. Qg3 {[%emt 0:02:04]} Be4+ {[%emt 0:00:08]} 26. Kg1 {[%emt 0:00:20]} Bc5+ {[%emt 0:00:06]} 27. Rf2 {[%emt 0:00:33]} Qe2 {[%emt 0:00:29]} 28. Bg5 {[%emt 0:05:23]} Qxb2 {[%emt 0:27:12]} 29. Raf1 {[%emt 0:00:37]} Qe2 {[%emt 0:05:34]} 30. Qh3 {[%emt 0:07:40]} Bxg6 {[%emt 0:05:20]} 31. Bf6 {[%emt 0:02:16]} Qh5 {[%emt 0:07:17]} 32. Qg3 {[%emt 0:04:46]} Kf7 {[%emt 0:01:08]} 33. h4 {[%emt 0:02:13]} Rg8 {[%emt 0:06:07]} 34. Bg5+ {[%emt 0:00:36]} Bf5 {[%emt 0:06:22]} 35. Qf4 {[%emt 0:04:12]} Qh7 {[%emt 0:02:30]} 36. Kh2 {[%emt 0:00:36]} Bxf2 {[%emt 0:00:14]} 37. Rxf2 {[%emt 0:00:17]} Ke6 {[%emt 0:00:17]} 38. Qb4 {[%emt 0:00:48]} Qc7 {[%emt 0:05:47]} 39. Rxf5 {[%emt 0:01:41]} Kxf5 {[%emt 0:00:11]} 40. Qf4+ {[%emt 0:00:05]} Kg6 {[%emt 0:00:40]} 41. Qf6+ {[%emt 0:30:02]} Kh5 {[%emt 0:30:13]} 42. Qh6+ {[%emt 0:00:08]} Kg4 {[%emt 0:00:06]} 43. Qe6+ {[%emt 0:00:10]} Kf3 {[%emt 0:00:27]} 44. Qf5+ {[%emt 0:01:28]} Ke2 {[%emt 0:00:18]} 45. Qc2+ {[%emt 0:00:15]} Ke1 {[%emt 0:00:55]} 46. Qd2+ {[%emt 0:02:10]} Kf1 {[%emt 0:00:12]} 47. Qd3+ {[%emt 0:00:21]} Kf2 {[%emt 0:00:45]} 48. Be3+ {[%emt 0:00:40]} Kf3 {[%emt 0:00:25]} 49. Bb6+ {[%emt 0:00:06]} 1-0

[Event "14th Poti Open-A 2019"]
[Site "Poti"]
[Date "2019.07.19"]
[Round "8.24"]
[White "Mchedlishvili, Ramaz"]
[Black "Kavkasidze, Ilia"]
[Result "1-0"]
[ECO "A01"]
[WhiteElo "1441"]
[BlackElo "1704"]
[Annotator "NA RC"]
[PlyCount "83"]
[EventDate "2019.07.13"]
[EventType "swiss"]
[EventCountry "GEO"]
[SourceTitle "playchess.com"]
[Source "ChessBase"]
[SourceQuality "1"]
[TimeControl "40/5400+30:1800+30"]

1. b3 {[%emt 0:00:24]} Nf6 {[%emt 0:01:59]} 2. Bb2 {[%emt 0:00:08]} g6 {[%emt 0:00:11]} 3. Bxf6 {[%emt 0:00:05]} exf6 {[%emt 0:00:06]} 4. c4 {[%emt 0:00:05]} Bg7 {[%emt 0:00:30]} 5. Nc3 {[%emt 0:00:07]} O-O {[%emt 0:01:30]} 6. g3 {[%emt 0:00:19]} Re8 {[%emt 0:07:23]} 7. Bg2 {[%emt 0:01:01]} c6 {[%emt 0:00:49]} 8. e3 {[%emt 0:02:42]} b6 {[%emt 0:02:16]} 9. Nge2 {[%emt 0:01:06]} Bb7 {[%emt 0:00:47]} 10. O-O {[%emt 0:00:22]} Qc7 {[%emt 0:01:54]} 11. d4 {[%emt 0:01:35]} f5 {[%emt 0:02:27]} 12. Rc1 {[%emt 0:01:25]} d6 {[%emt 0:00:35]} 13. Qc2 {[%emt 0:02:04]} Nd7 {[%emt 0:01:55]} 14. Nf4 {[%emt 0:02:08]} Nf6 {[%emt 0:02:25]} 15. h4 {[%emt 0:02:17]} h5 {[%emt 0:04:14]} 16. Rfd1 {[%emt 0:04:24]} Qe7 {[%emt 0:01:20]} 17. b4 {[%emt 0:05:44]} Rac8 {[%emt 0:10:15]} 18. Qb3 {[%emt 0:04:11]} Ng4 {[%emt 0:07:03]} 19. Nce2 {[%emt 0:03:24]} Kf8 {[%emt 0:13:11]} 20. a4 {[%emt 0:01:40]} a6 {[%emt 0:03:30]} 21. c5 {[%emt 0:07:15]} dxc5 {[%emt 0:03:10]} 22. dxc5 {[%emt 0:06:29]} b5 {[%emt 0:01:12]} 23. axb5 {[%emt 0:00:21]} axb5 {[%emt 0:00:11]} 24. Rd6 {[%emt 0:02:24]} Bf6 {[%emt 0:02:50]} 25. Rcd1 {[%emt 0:05:39]} Red8 {[%emt 0:01:53]} 26. Nd4 {[%emt 0:01:49]} Rxd6 {[%emt 0:01:54]} 27. cxd6 {[%emt 0:00:10]} Qd7 {[%emt 0:00:39]} 28. Nde6+ {[%emt 0:05:37]} fxe6 {[%emt 0:00:35]} 29. Nxe6+ {[%emt 0:00:07]} Ke8 {[%emt 0:04:19]} 30. Nc5 {[%emt 0:01:00]} Qf7 {[%emt 0:01:04]} 31. d7+ {[%emt 0:00:29]} Kf8 {[%emt 0:00:10]} 32. dxc8=Q+ {[%emt 0:00:52]} Bxc8 {[%emt 0:00:04]} 33. Qxf7+ {[%emt 0:00:40]} Kxf7 {[%emt 0:00:05]} 34. Bxc6 {[%emt 0:00:15]} Bc3 {[%emt 0:00:21]} 35. Rd8 {[%emt 0:03:53]} Be6 {[%emt 0:00:17]} 36. Be8+ {[%emt 0:00:53]} Ke7 {[%emt 0:00:22]} 37. Nxe6 {[%emt 0:00:13]} Kxe6 {[%emt 0:00:03]} 38. Bxg6 {[%emt 0:00:19]} Bxb4 {[%emt 0:00:53]} 39. Bxh5 {[%emt 0:00:21]} Nf6 {[%emt 0:00:14]} 40. Be2 {[%emt 0:00:40]} Ne4 {[%emt 0:00:20]} 41. Bd3 {[%emt 0:31:51]} Nc3 {[%emt 0:31:27]} 42. Bxb5 {[%emt 0:01:54] Kd5} 1-0

[Event "14th Poti Open-A 2019"]
[Site "Poti"]
[Date "2019.07.19"]
[Round "8.27"]
[White "Gegia, Davit"]
[Black "Ghvamberia, Gela"]
[Result "1-0"]
[ECO "D02"]
[WhiteElo "1386"]
[BlackElo "1291"]
[Annotator "NA RC"]
[PlyCount "103"]
[EventDate "2019.07.13"]
[EventType "swiss"]
[EventCountry "GEO"]
[SourceTitle "playchess.com"]
[Source "ChessBase"]
[SourceQuality "1"]
[TimeControl "40/5400+30:1800+30"]

1. d4 {[%emt 0:00:00]} d5 {[%emt 0:00:00]} 2. Bf4 {[%emt 0:00:00]} Nf6 {[%emt 0:00:00]} 3. Nf3 {[%emt 0:00:00]} Bf5 {[%emt 0:01:03]} 4. e3 {[%emt 0:00:00]} Nbd7 {[%emt 0:01:26]} 5. Bd3 {[%emt 0:00:22]} Bxd3 {[%emt 0:02:28]} 6. Qxd3 {[%emt 0:01:26]} e6 {[%emt 0:02:01]} 7. Ne5 {[%emt 0:02:09]} Nh5 {[%emt 0:02:03]} 8. Bg3 {[%emt 0:00:32]} a6 {[%emt 0:00:47]} 9. Nxd7 {[%emt 0:00:54]} Qxd7 {[%emt 0:00:13]} 10. Nd2 {[%emt 0:02:01]} Nxg3 11. hxg3 {[%emt 0:00:08]} h6 {[%emt 0:02:47]} 12. c3 {[%emt 0:02:40]} Bd6 {[%emt 0:02:19]} 13. f4 {[%emt 0:03:23]} c5 {[%emt 0:01:34]} 14. g4 {[%emt 0:02:05]} c4 {[%emt 0:00:47]} 15. Qc2 {[%emt 0:00:23]} b5 {[%emt 0:01:50]} 16. g5 {[%emt 0:00:53]} h5 {[%emt 0:02:06]} 17. g4 {[%emt 0:02:46]} h4 {[%emt 0:05:40]} 18. Nf3 {[%emt 0:00:48]} h3 {[%emt 0:00:59]} 19. Ng1 {[%emt 0:00:23]} O-O-O {[%emt 0:01:44]} 20. O-O-O {[%emt 0:02:12]} Rh4 {[%emt 0:03:18]} 21. Rxh3 Rxh3 {[%emt 0:03:52]} 22. Nxh3 {[%emt 0:00:44]} b4 {[%emt 0:00:31]} 23. Ng1 {[%emt 0:05:31]} bxc3 {[%emt 0:01:58]} 24. Qxc3 {[%emt 0:01:06]} Qb5 {[%emt 0:00:29]} 25. a3 {[%emt 0:02:59]} Kd7 {[%emt 0:02:23]} 26. Nf3 {[%emt 0:02:44]} Rc8 {[%emt 0:01:40]} 27. Rh1 Bc7 {[%emt 0:08:55]} 28. Ne5+ {[%emt 0:03:52]} Ke7 {[%emt 0:00:21]} 29. Qb4+ {[%emt 0:01:05]} Qxb4 {[%emt 0:01:23]} 30. Nc6+ {[%emt 0:00:05]} Kd6 {[%emt 0:00:27]} 31. Nxb4 {[%emt 0:00:15]} a5 {[%emt 0:00:19]} 32. Na2 {[%emt 0:00:22]} g6 {[%emt 0:01:16]} 33. Nc3 {[%emt 0:01:02]} Rb8 34. Rh7 {[%emt 0:01:47]} Ke7 {[%emt 0:01:27]} 35. f5 {[%emt 0:00:20]} Rg8 {[%emt 0:07:07]} 36. f6+ {[%emt 0:06:19]} Ke8 {[%emt 0:01:48]} 37. Kc2 {[%emt 0:00:27]} Rf8 {[%emt 0:02:44]} 38. e4 {[%emt 0:03:56]} Bf4 {[%emt 0:02:00]} 39. exd5 {[%emt 0:00:07]} Bxg5 {[%emt 0:01:13]} 40. Ne4 {[%emt 0:00:08]} Bf4 {[%emt 0:04:58]} 41. dxe6 {[%emt 0:30:11]} fxe6 {[%emt 0:30:52]} 42. Re7+ {[%emt 0:00:12]} Kd8 {[%emt 0:00:17]} 43. Rxe6 {[%emt 0:00:09]} Kd7 {[%emt 0:01:04]} 44. Re7+ {[%emt 0:00:18]} Kc6 {[%emt 0:00:22]} 45. g5 {[%emt 0:00:46]} Kd5 {[%emt 0:01:04]} 46. Kc3 {[%emt 0:01:45]} Rh8 {[%emt 0:03:43]} 47. f7 {[%emt 0:01:27]} Rf8 {[%emt 0:00:22]} 48. Nf6+ {[%emt 0:01:26]} Kd6 {[%emt 0:00:36]} 49. Ra7 {[%emt 0:00:19]} Ke6 {[%emt 0:03:07]} 50. d5+ {[%emt 0:00:50]} Kf5 {[%emt 0:03:00]} 51. Nh7 {[%emt 0:00:08]} Be5+ {[%emt 0:00:27]} 52. Kxc4 {[%emt 0:00:16]} 1-0

[Event "14th Poti Open-A 2019"]
[Site "Poti"]
[Date "2019.07.20"]
[Round "9.3"]
[White "Urazayev, Arystanbek"]
[Black "Shahinyan, David"]
[Result "0-1"]
[ECO "C41"]
[WhiteElo "2436"]
[BlackElo "2445"]
[Annotator "NA"]
[PlyCount "114"]
[EventDate "2019.07.13"]
[EventType "swiss"]
[EventCountry "GEO"]
[SourceTitle "playchess.com"]
[Source "ChessBase"]
[SourceQuality "1"]
[TimeControl "40/5400+30:1800+30"]

1. e4 {[%emt 0:00:00]} d6 {[%emt 0:00:10]} 2. d4 {[%emt 0:00:00]} Nf6 {[%emt 0:00:05]} 3. Nc3 {[%emt 0:00:00]} e5 {[%emt 0:00:05]} 4. Nf3 {[%emt 0:00:00]} Nbd7 {[%emt 0:00:05]} 5. Bc4 {[%emt 0:00:00]} Be7 {[%emt 0:00:07]} 6. O-O {[%emt 0:00:00]} O-O {[%emt 0:00:03]} 7. a4 {[%emt 0:00:00]} c6 {[%emt 0:00:02]} 8. h3 {[%emt 0:00:00]} h6 {[%emt 0:04:08]} 9. Re1 {[%emt 0:01:49]} Re8 {[%emt 0:02:31]} 10. Be3 {[%emt 0:04:58] C41: Philidor Defence} Qa5 $146 {[%emt 0:09:50]} ({Predecessor:} 10... Qc7 11. Ba2 Nf8 12. Qd3 Ng6 13. a5 Nh5 14. Ne2 Bf8 15. d5 c5 16. Qd2 Qd8 17. Bc4 Bd7 18. Kh2 Nh4 19. Nxh4 Qxh4 {1-0 (73) Rodshtein,M (2673)-Moussard,J (2601) Skopje 2019}) 11. Ba2 {[%emt 0:17:31]} exd4 {[%emt 0:02:26]} 12. Nxd4 {[%emt 0:00:39]} Ne5 {[%emt 0:00:09]} 13. Qd2 {[%emt 0:11:12]} Qb4 {[%emt 0:07:28]} 14. Nd5 {[%emt 0:07:22]} Nxd5 {[%emt 0:00:05]} 15. exd5 {[%emt 0:00:09]} Qxd2 {[%emt 0:00:03]} 16. Bxd2 {[%emt 0:00:05]} Bd7 {[%emt 0:00:47]} 17. Ne2 {[%emt 0:13:09]} Bf5 {[%emt 0:15:57]} 18. Nd4 {[%emt 0:03:05]} Bd7 {[%emt 0:01:17]} 19. Ne2 {[%emt 0:00:06]} c5 {[%emt 0:10:02]} 20. a5 {[%emt 0:02:15]} b5 {[%emt 0:03:48]} 21. Ng3 {[%emt 0:02:02]} Bf8 {[%emt 0:03:54]} 22. Rad1 {[%emt 0:11:58]} Ng6 {[%emt 0:06:17]} 23. Rxe8 {[%emt 0:03:49]} Rxe8 {[%emt 0:00:01]} 24. Be3 {[%emt 0:00:34]} f5 {[%emt 0:01:25]} 25. Ne2 {[%emt 0:06:25]} Re4 {[%emt 0:00:13]} 26. Nc3 {[%emt 0:02:54]} Rb4 {[%emt 0:00:03]} 27. Bc1 {[%emt 0:01:05]} Be7 {[%emt 0:03:30]} 28. Bb3 {[%emt 0:03:21]} Bd8 {[%emt 0:06:24]} 29. Bd2 {[%emt 0:01:53]} Rh4 {[%emt 0:06:35]} 30. g3 {[%emt 0:01:01]} Rxh3 {[%emt 0:03:00]} 31. Kg2 {[%emt 0:00:52]} f4 {[%emt 0:05:20]} 32. Ne4 {[%emt 0:00:10]} f3+ {[%emt 0:00:37]} 33. Kxf3 {[%emt 0:01:01]} Nh4+ {[%emt 0:00:01]} 34. Ke3 {[%emt 0:01:59]} Nf5+ {[%emt 0:01:40]} 35. Kd3 {[%emt 0:01:59]} c4+ {[%emt 0:00:38]} 36. Bxc4 {[%emt 0:00:05]} bxc4+ {[%emt 0:00:03]} 37. Kxc4 {[%emt 0:00:03]} a6 {[%emt 0:01:27]} 38. Kd3 {[%emt 0:01:30]} Ne7 {[%emt 0:01:19]} 39. c4 {[%emt 0:00:59]} Rh5 {[%emt 0:00:19]} 40. b4 {[%emt 0:00:00]} Nc8 {[%emt 0:00:00]} 41. Bf4 {[%emt 0:08:09]} Be7 {[%emt 0:08:21]} 42. Kd4 {[%emt 0:00:51]} Rf5 {[%emt 0:01:03]} 43. c5 {[%emt 0:06:31]} Ba4 {[%emt 0:01:04]} 44. Rc1 {[%emt 0:03:33] [#]} Bf6+ $17 {[%emt 0:03:28]} 45. Nxf6+ {[%emt 0:01:49]} Rxf6 {[%emt 0:02:12]} 46. Re1 {[%emt 0:06:48]} Kf7 {[%emt 0:01:37]} 47. cxd6 {[%emt 0:00:54]} Nxd6 {[%emt 0:00:07]} 48. Kc5 {[%emt 0:00:36]} Nb7+ {[%emt 0:00:33]} 49. Kd4 {[%emt 0:00:05]} g5 {[%emt 0:00:40]} 50. Be5 {[%emt 0:00:41]} Rxf2 {[%emt 0:00:28]} 51. Rc1 {[%emt 0:00:48]} Rd2+ {[%emt 0:00:48]} 52. Ke4 {[%emt 0:01:31]} Bc2+ {[%emt 0:00:15]} 53. Kf3 {[%emt 0:01:01]} Kg6 {[%emt 0:02:57]} 54. b5 {[%emt 0:01:53]} Nc5 {[%emt 0:02:19]} 55. Bd6 {[%emt 0:01:43]} Nb3 {[%emt 0:02:17]} 56. bxa6 {[%emt 0:02:13]} Nxc1 {[%emt 0:01:37]} 57. a7 {[%emt 0:00:46]} Re2 {[%emt 0:00:09]} 0-1

[Event "14th Poti Open-A 2019"]
[Site "Poti"]
[Date "2019.07.20"]
[Round "9.4"]
[White "Nigalidze, Gaioz"]
[Black "Paichadze, Luka"]
[Result "0-1"]
[ECO "E21"]
[WhiteElo "2563"]
[BlackElo "2567"]
[Annotator "ChessBase"]
[PlyCount "54"]
[EventDate "2019.07.13"]
[EventType "swiss"]
[EventCountry "GEO"]
[SourceTitle "playchess.com"]
[Source "ChessBase"]
[SourceQuality "1"]
[TimeControl "40/5400+30:1800+30"]

1. d4 {[%emt 0:00:00]} Nf6 {[%emt 0:06:21]} 2. c4 {[%emt 0:01:38]} e6 {[%emt 0:00:18]} 3. Nf3 {[%emt 0:00:06]} Bb4+ {[%emt 0:00:10]} 4. Nc3 {[%emt 0:00:06]} b6 {[%emt 0:00:38]} 5. g3 {[%emt 0:00:10]} Bb7 {[%emt 0:00:10]} 6. Bg2 {[%emt 0:00:06]} O-O {[%emt 0:00:37]} 7. O-O {[%emt 0:00:26]} Bxc3 {[%emt 0:00:37]} 8. bxc3 {[%emt 0:00:06]} d6 {[%emt 0:00:21]} 9. a4 {[%emt 0:02:13]} Nc6 {[%emt 0:03:28]} 10. d5 {[%emt 0:04:11]} Na5 {[%emt 0:02:33]} 11. dxe6 {[%emt 0:05:07]} fxe6 {[%emt 0:02:54]} 12. Nd2 {[%emt 0:04:00]} Bxg2 {[%emt 0:00:15]} 13. Kxg2 {[%emt 0:00:04]} Qe8 {[%emt 0:03:37]} 14. e4 {[%emt 0:04:31]} Qc6 {[%emt 0:00:11]} 15. Qe2 {[%emt 0:00:06]} Nd7 {[%emt 0:00:12]} 16. f4 {[%emt 0:03:20]} Nc5 {[%emt 0:05:33]} 17. Rb1 {[%emt 0:06:30]} Qxa4 {[%emt 0:03:09]} 18. e5 {[%emt 0:02:09]} dxe5 {[%emt 0:00:31]} 19. Qxe5 {[%emt 0:00:19]} Rad8 {[%emt 0:01:14]} 20. Qe2 {[%emt 0:02:11]} Qc2 {[%emt 0:02:38]} 21. Rb2 {[%emt 0:00:47]} Qxc3 {[%emt 0:00:47]} 22. Ra2 {[%emt 0:00:50]} Rd3 {[%emt 0:03:28]} 23. Ba3 {[%emt 0:00:41]} Rfd8 {[%emt 0:01:54]} 24. Nb1 {[%emt 0:00:35]} Qxc4 {[%emt 0:00:19]} 25. Bxc5 {[%emt 0:00:07]} bxc5 {[%emt 0:01:23]} 26. Rxa5 {[%emt 0:01:02]} Rxg3+ {[%emt 0:00:10]} 27. Kf2 {[%emt 0:00:22]} Rg2+ {[%emt 0:00:08]} 0-1

[Event "14th Poti Open-A 2019"]
[Site "Poti"]
[Date "2019.07.20"]
[Round "9.5"]
[White "Lomsadze, Davit"]
[Black "Pantsulaia, Levan"]
[Result "0-1"]
[ECO "A04"]
[WhiteElo "2292"]
[BlackElo "2612"]
[Annotator "RC"]
[PlyCount "66"]
[EventDate "2019.07.13"]
[EventType "swiss"]
[EventCountry "GEO"]
[SourceTitle "playchess.com"]
[Source "ChessBase"]
[SourceQuality "1"]
[TimeControl "40/5400+30:1800+30"]

1. Nf3 {[%emt 0:00:00]} c5 {[%emt 0:06:43]} 2. g3 {[%emt 0:00:46]} g6 {[%emt 0:00:28]} 3. Bg2 {[%emt 0:00:06]} Bg7 {[%emt 0:00:04]} 4. O-O {[%emt 0:00:15]} Nc6 {[%emt 0:00:05]} 5. d3 {[%emt 0:00:39]} e6 {[%emt 0:03:03]} 6. Nc3 {[%emt 0:04:34]} Nge7 {[%emt 0:00:58]} 7. a3 {[%emt 0:02:25]} O-O {[%emt 0:00:09]} 8. Rb1 {[%emt 0:05:24]} b6 {[%emt 0:05:23]} 9. Bd2 {[%emt 0:02:26]} a5 {[%emt 0:00:42]} 10. Qc1 {[%emt 0:07:10]} d5 {[%emt 0:01:17]} 11. Bh6 {[%emt 0:02:13]} Rb8 {[%emt 0:00:46]} 12. Bxg7 {[%emt 0:02:03]} Kxg7 {[%emt 0:00:06]} 13. Nb5 {[%emt 0:03:39]} Ba6 {[%emt 0:03:16]} 14. c4 {[%emt 0:06:45]} Nf5 {[%emt 0:02:59]} 15. Qf4 {[%emt 0:02:22]} Bxb5 {[%emt 0:01:02]} 16. cxb5 {[%emt 0:00:07]} Ncd4 {[%emt 0:00:52]} 17. Nxd4 {[%emt 0:01:47]} Nxd4 {[%emt 0:00:06]} 18. Rfe1 {[%emt 0:00:35]} Nxb5 {[%emt 0:00:27]} 19. e4 {[%emt 0:01:13]} dxe4 {[%emt 0:03:13]} 20. dxe4 {[%emt 0:00:50]} a4 {[%emt 0:00:14]} 21. Rbd1 {[%emt 0:00:34]} Nd4 {[%emt 0:00:24]} 22. Rd2 {[%emt 0:00:47]} Qf6 {[%emt 0:01:03]} 23. Qe3 {[%emt 0:00:50]} e5 {[%emt 0:01:23]} 24. f4 {[%emt 0:00:25]} Rfe8 {[%emt 0:01:32]} 25. Rf1 {[%emt 0:00:31]} Re7 {[%emt 0:00:11]} 26. h4 {[%emt 0:01:16]} exf4 {[%emt 0:01:07]} 27. Rxf4 {[%emt 0:01:42]} Qe5 {[%emt 0:00:07]} 28. Rdf2 {[%emt 0:00:50]} b5 {[%emt 0:00:13]} 29. g4 {[%emt 0:00:47]} b4 {[%emt 0:02:02]} 30. g5 {[%emt 0:01:08]} bxa3 {[%emt 0:00:50]} 31. bxa3 {[%emt 0:00:04]} c4 {[%emt 0:02:37]} 32. Bf1 {[%emt 0:00:14]} Rb3 {[%emt 0:02:01]} 33. Qc1 {[%emt 0:00:06]} Rg3+ {[%emt 0:01:00]} 0-1